[Event "Titled Tuesday Blitz March 14 Early 2023"]
[White "Begunov, Konstantin"]
[Black "Remizov, Yaroslav"]
[WhiteFideId "4118510"]
[BlackFideId "34134015"]
[WhiteElo "2079"]
[BlackElo "2408"]
[Result "1-0"]
[Round "01"]
[TimeControl "180+2"]
[Date "2023.03.14"]
[WhiteClock "0:00:11"]
[BlackClock "0:00:02"]

1. d4 {[%clk 0:03:00]}  Nf6 {[%clk 0:02:59]} 2. c4 {[%clk 0:03:00]}  c5 {[%clk 0:03:00]} 3. Nf3 {[%clk 0:03:00]}  cxd4 {[%clk 0:02:59]} 4. Nxd4 {[%clk 0:03:01]}  e5 {[%clk 0:02:58]} 5. Nb5 {[%clk 0:03:00]}  d6 {[%clk 0:02:43]} 6. Bg5 {[%clk 0:02:56]}  Be6 {[%clk 0:02:36]} 7. Bxf6 {[%clk 0:02:48]}  gxf6 {[%clk 0:02:32]} 8. e3 {[%clk 0:02:46]}  Nc6 {[%clk 0:02:29]} 9. N1c3 {[%clk 0:02:44]}  a6 {[%clk 0:02:28]} 10. Na3 {[%clk 0:02:44]}  f5 {[%clk 0:02:25]} 11. g3 {[%clk 0:02:42]}  Be7 {[%clk 0:02:13]} 12. Bg2 {[%clk 0:02:42]}  O-O {[%clk 0:02:11]} 13. O-O {[%clk 0:02:42]}  Kh8 {[%clk 0:02:11]} 14. Nd5 {[%clk 0:02:36]}  Rc8 {[%clk 0:02:07]} 15. Rc1 {[%clk 0:02:33]}  Bg5 {[%clk 0:02:06]} 16. Nb1 {[%clk 0:02:24]}  Bh6 {[%clk 0:02:04]} 17. Qh5 {[%clk 0:02:19]}  Qg5 {[%clk 0:02:02]} 18. Qxg5 {[%clk 0:02:18]}  Bxg5 {[%clk 0:02:03]} 19. b3 {[%clk 0:02:12]}  Bxd5 {[%clk 0:01:56]} 20. Bxd5 {[%clk 0:02:06]}  f4 {[%clk 0:01:49]} 21. exf4 {[%clk 0:01:59]}  exf4 {[%clk 0:01:49]} 22. Rcd1 {[%clk 0:01:58]}  Rc7 {[%clk 0:01:45]} 23. Nc3 {[%clk 0:01:55]}  Ne5 {[%clk 0:01:44]} 24. Ne4 {[%clk 0:01:52]}  Be7 {[%clk 0:01:25]} 25. gxf4 {[%clk 0:01:51]}  Nf3+ {[%clk 0:01:22]} 26. Kh1 {[%clk 0:01:48]}  Nh4 {[%clk 0:01:21]} 27. Ng5 {[%clk 0:01:41]}  Bxg5 {[%clk 0:01:17]} 28. fxg5 {[%clk 0:01:42]}  Re7 {[%clk 0:01:17]} 29. Rfe1 {[%clk 0:01:07]}  Rfe8 {[%clk 0:01:17]} 30. Re3 {[%clk 0:01:07]}  Rxe3 {[%clk 0:01:13]} 31. fxe3 {[%clk 0:01:08]}  Rxe3 {[%clk 0:01:14]} 32. Bxb7 {[%clk 0:01:08]}  a5 {[%clk 0:01:09]} 33. Kg1 {[%clk 0:01:03]}  Re2 {[%clk 0:01:08]} 34. Rxd6 {[%clk 0:00:59]}  Rxa2 {[%clk 0:01:07]} 35. c5 {[%clk 0:00:56]}  Rc2 {[%clk 0:00:57]} 36. Rd8+ {[%clk 0:00:33]}  Kg7 {[%clk 0:00:57]} 37. Rc8 {[%clk 0:00:33]}  Rd2 {[%clk 0:00:36]} 38. Be4 {[%clk 0:00:21]}  Re2 {[%clk 0:00:33]} 39. Bd5 {[%clk 0:00:21]}  Rd2 {[%clk 0:00:32]} 40. Be4 {[%clk 0:00:18]}  Re2 {[%clk 0:00:28]} 41. Bd5 {[%clk 0:00:17]}  Re5 {[%clk 0:00:25]} 42. Rd8 {[%clk 0:00:16]}  Re2 {[%clk 0:00:16]} 43. c6 {[%clk 0:00:16]}  Rc2 {[%clk 0:00:17]} 44. Rd7 {[%clk 0:00:16]}  Nf5 {[%clk 0:00:15]} 45. c7 {[%clk 0:00:15]}  Ne3 {[%clk 0:00:15]} 46. Bb7 {[%clk 0:00:15]}  Rc1+ {[%clk 0:00:06]} 47. Kf2 {[%clk 0:00:15]}  Ng4+ {[%clk 0:00:07]} 48. Kg3 {[%clk 0:00:15]}  Ne5 {[%clk 0:00:05]} 49. c8=Q {[%clk 0:00:15]}  Rf1 {[%clk 0:00:03]} 50. Rd5 {[%clk 0:00:12]}  Ng6 {[%clk 0:00:02]} 51. Rd8 {[%clk 0:00:11]} 1-0


[Site "https://www.chess.com"]

[Event "Titled Tuesday Blitz March 14 Early 2023"]
[White "Staudenhocker43"]
[Black "Narayanan, Srinath"]
[BlackFideId "5018420"]
[WhiteElo "2411"]
[BlackElo "2438"]
[Result "0-1"]
[Round "01"]
[TimeControl "180+2"]
[Date "2023.03.14"]
[WhiteClock "0:00:52"]
[BlackClock "0:00:34"]

1. d4 {[%clk 0:02:58]}  Nf6 {[%clk 0:02:55]} 2. c4 {[%clk 0:02:59]}  c5 {[%clk 0:02:54]} 3. d5 {[%clk 0:02:58]}  g6 {[%clk 0:02:54]} 4. Nc3 {[%clk 0:02:58]}  Bg7 {[%clk 0:02:54]} 5. e4 {[%clk 0:02:57]}  O-O {[%clk 0:02:54]} 6. Nge2 {[%clk 0:02:56]}  e6 {[%clk 0:02:53]} 7. Ng3 {[%clk 0:02:56]}  exd5 {[%clk 0:02:52]} 8. cxd5 {[%clk 0:02:57]}  Re8 {[%clk 0:02:52]} 9. Be2 {[%clk 0:02:53]}  h5 {[%clk 0:02:51]} 10. f3 {[%clk 0:02:52]}  h4 {[%clk 0:02:50]} 11. Nf1 {[%clk 0:02:52]}  h3 {[%clk 0:02:51]} 12. g4 {[%clk 0:02:51]}  a6 {[%clk 0:02:51]} 13. a4 {[%clk 0:02:50]}  d6 {[%clk 0:02:50]} 14. Ng3 {[%clk 0:02:50]}  Nbd7 {[%clk 0:02:50]} 15. O-O {[%clk 0:02:49]}  Ne5 {[%clk 0:02:50]} 16. g5 {[%clk 0:02:47]}  Nh7 {[%clk 0:02:46]} 17. f4 {[%clk 0:02:47]}  Nd7 {[%clk 0:02:46]} 18. Bg4 {[%clk 0:02:31]}  Nb6 {[%clk 0:02:40]} 19. Bxc8 {[%clk 0:02:27]}  Qxc8 {[%clk 0:02:41]} 20. f5 {[%clk 0:02:24]}  Bd4+ {[%clk 0:02:39]} 21. Kh1 {[%clk 0:02:24]}  Nc4 {[%clk 0:02:39]} 22. Qg4 {[%clk 0:02:20]}  Ne3 {[%clk 0:02:34]} 23. Bxe3 {[%clk 0:02:19]}  Bxe3 {[%clk 0:02:35]} 24. Qxh3 {[%clk 0:02:14]}  Bxg5 {[%clk 0:02:26]} 25. Kg2 {[%clk 0:02:12]}  Bf6 {[%clk 0:02:11]} 26. Qg4 {[%clk 0:01:59]}  Be5 {[%clk 0:02:06]} 27. h3 {[%clk 0:01:57]}  Kg7 {[%clk 0:01:19]} 28. Nh5+ {[%clk 0:01:40]}  Kh8 {[%clk 0:01:19]} 29. fxg6 {[%clk 0:01:32]}  fxg6 {[%clk 0:01:20]} 30. Nf4 {[%clk 0:01:30]}  Qxg4+ {[%clk 0:01:09]} 31. hxg4 {[%clk 0:01:31]}  Bxc3 {[%clk 0:01:09]} 32. bxc3 {[%clk 0:01:29]}  Rxe4 {[%clk 0:01:09]} 33. Nxg6+ {[%clk 0:01:27]}  Kg7 {[%clk 0:01:09]} 34. Nf4 {[%clk 0:01:27]}  Ng5 {[%clk 0:01:08]} 35. Rae1 {[%clk 0:01:25]}  Rae8 {[%clk 0:01:00]} 36. Ne6+ {[%clk 0:01:24]}  Kg6 {[%clk 0:01:00]} 37. Nf8+ {[%clk 0:01:00]}  Rxf8 {[%clk 0:00:44]} 38. Rxf8 {[%clk 0:00:56]}  Rxe1 {[%clk 0:00:43]} 39. Rb8 {[%clk 0:00:56]}  Rb1 {[%clk 0:00:38]} 40. Rd8 {[%clk 0:00:53]}  Nf7 {[%clk 0:00:37]} 41. Rd7 {[%clk 0:00:53]}  Rb3 {[%clk 0:00:34]} 42. c4 {[%clk 0:00:53]}  Rb4 {[%clk 0:00:33]} 43. a5 {[%clk 0:00:52]}  Rxc4 {[%clk 0:00:32]} 44. Rxb7 {[%clk 0:00:52]}  Rxg4+ {[%clk 0:00:33]} 45. Kf3 {[%clk 0:00:52]}  Ra4 {[%clk 0:00:34]} 0-1


[Site "https://www.chess.com"]

[Event "Titled Tuesday Blitz March 14 Early 2023"]
[White "Bochnicka, Vladimir"]
[Black "Lobanov, Sergei"]
[WhiteFideId "14943450"]
[BlackFideId "24183750"]
[WhiteElo "2094"]
[BlackElo "2489"]
[Result "0-1"]
[Round "01"]
[TimeControl "180+2"]
[Date "2023.03.14"]
[WhiteClock "0:00:05"]
[BlackClock "0:00:15"]

1. e4 {[%clk 0:02:58]}  e5 {[%clk 0:02:59]} 2. Nf3 {[%clk 0:02:58]}  Nc6 {[%clk 0:02:59]} 3. Bc4 {[%clk 0:02:59]}  Nf6 {[%clk 0:02:56]} 4. d3 {[%clk 0:02:59]}  Be7 {[%clk 0:02:55]} 5. O-O {[%clk 0:02:59]}  O-O {[%clk 0:02:55]} 6. Re1 {[%clk 0:02:59]}  d6 {[%clk 0:02:54]} 7. a4 {[%clk 0:02:59]}  Be6 {[%clk 0:02:51]} 8. Bxe6 {[%clk 0:02:53]}  fxe6 {[%clk 0:02:52]} 9. c3 {[%clk 0:02:54]}  Qd7 {[%clk 0:02:38]} 10. Na3 {[%clk 0:02:53]}  Kh8 {[%clk 0:02:36]} 11. b4 {[%clk 0:02:50]}  a6 {[%clk 0:02:25]} 12. h3 {[%clk 0:02:46]}  Nd8 {[%clk 0:02:18]} 13. Be3 {[%clk 0:02:39]}  Nf7 {[%clk 0:02:17]} 14. Qb3 {[%clk 0:02:22]}  d5 {[%clk 0:02:13]} 15. Rad1 {[%clk 0:01:46]}  c6 {[%clk 0:02:10]} 16. a5 {[%clk 0:01:43]}  Bd6 {[%clk 0:02:08]} 17. Bc1 {[%clk 0:01:36]}  Qe7 {[%clk 0:02:06]} 18. Nc2 {[%clk 0:01:29]}  Rad8 {[%clk 0:02:05]} 19. c4 {[%clk 0:01:27]}  Rg8 {[%clk 0:01:45]} 20. Ne3 {[%clk 0:01:08]}  Bb8 {[%clk 0:01:35]} 21. b5 {[%clk 0:00:59]}  cxb5 {[%clk 0:01:06]} 22. cxb5 {[%clk 0:00:59]}  Qc5 {[%clk 0:01:06]} 23. bxa6 {[%clk 0:00:57]}  bxa6 {[%clk 0:01:06]} 24. Bb2 {[%clk 0:00:44]}  Qxa5 {[%clk 0:01:00]} 25. Ra1 {[%clk 0:00:44]}  Qb5 {[%clk 0:01:00]} 26. Qxb5 {[%clk 0:00:39]}  axb5 {[%clk 0:01:01]} 27. exd5 {[%clk 0:00:40]}  exd5 {[%clk 0:01:01]} 28. Nf5 {[%clk 0:00:38]}  d4 {[%clk 0:00:55]} 29. Ra6 {[%clk 0:00:28]}  Nd5 {[%clk 0:00:45]} 30. Re6 {[%clk 0:00:17]}  Rge8 {[%clk 0:00:43]} 31. Rxe8+ {[%clk 0:00:15]}  Rxe8 {[%clk 0:00:44]} 32. N3xd4 {[%clk 0:00:15]}  b4 {[%clk 0:00:28]} 33. Nc6 {[%clk 0:00:15]}  Bc7 {[%clk 0:00:27]} 34. Ne3 {[%clk 0:00:10]}  Nf4 {[%clk 0:00:26]} 35. Nxb4 {[%clk 0:00:09]}  Ba5 {[%clk 0:00:24]} 36. Bc3 {[%clk 0:00:08]}  Bxb4 {[%clk 0:00:21]} 37. Bxb4 {[%clk 0:00:08]}  Nxd3 {[%clk 0:00:22]} 38. Rb1 {[%clk 0:00:08]}  Rb8 {[%clk 0:00:21]} 39. Nd5 {[%clk 0:00:07]}  Rb5 {[%clk 0:00:15]} 40. Ra1 {[%clk 0:00:03]}  Rxd5 {[%clk 0:00:15]} 41. Ra8+ {[%clk 0:00:03]}  Rd8 {[%clk 0:00:15]} 42. Ra5 {[%clk 0:00:03]}  Nxb4 {[%clk 0:00:15]} 43. Rb5 {[%clk 0:00:04]}  Nd3 {[%clk 0:00:15]} 44. Rb7 {[%clk 0:00:04]}  Kg8 {[%clk 0:00:15]} 45. Re7 {[%clk 0:00:04]}  Nf4 {[%clk 0:00:15]} 46. g3 {[%clk 0:00:04]}  Nxh3+ {[%clk 0:00:14]} 47. Kg2 {[%clk 0:00:05]}  Nhg5 {[%clk 0:00:15]} 48. Ra7 {[%clk 0:00:05]}  h5 {[%clk 0:00:15]} 0-1


[Site "https://www.chess.com"]

[Event "Titled Tuesday Blitz March 14 Early 2023"]
[White "Smirnov, Pavel"]
[Black "aidenzhouu"]
[WhiteFideId "4123425"]
[WhiteElo "2519"]
[BlackElo "2405"]
[Result "1-0"]
[Round "01"]
[TimeControl "180+2"]
[Date "2023.03.14"]
[WhiteClock "0:01:20"]
[BlackClock "0:00:19"]

1. d4 {[%clk 0:02:59]}  Nf6 {[%clk 0:02:58]} 2. c4 {[%clk 0:02:59]}  g6 {[%clk 0:02:51]} 3. g3 {[%clk 0:02:58]}  Bg7 {[%clk 0:02:52]} 4. Nf3 {[%clk 0:02:59]}  O-O {[%clk 0:02:52]} 5. Bg2 {[%clk 0:03:00]}  d6 {[%clk 0:02:53]} 6. O-O {[%clk 0:02:59]}  Nc6 {[%clk 0:02:53]} 7. Nc3 {[%clk 0:03:00]}  e5 {[%clk 0:02:54]} 8. dxe5 {[%clk 0:03:00]}  dxe5 {[%clk 0:02:54]} 9. Bg5 {[%clk 0:02:59]}  Be6 {[%clk 0:02:53]} 10. Nd5 {[%clk 0:02:59]}  Bxd5 {[%clk 0:02:46]} 11. Bxf6 {[%clk 0:02:58]}  Bxf6 {[%clk 0:02:44]} 12. cxd5 {[%clk 0:02:57]}  Nd4 {[%clk 0:02:42]} 13. Nd2 {[%clk 0:02:56]}  Nf5 {[%clk 0:02:17]} 14. Rc1 {[%clk 0:02:52]}  Nd6 {[%clk 0:02:17]} 15. Qc2 {[%clk 0:02:47]}  Rc8 {[%clk 0:02:16]} 16. Bh3 {[%clk 0:02:46]}  Rb8 {[%clk 0:02:09]} 17. Qxc7 {[%clk 0:02:45]}  h5 {[%clk 0:01:58]} 18. a4 {[%clk 0:02:36]}  g5 {[%clk 0:01:56]} 19. Qc5 {[%clk 0:02:24]}  g4 {[%clk 0:01:54]} 20. Bg2 {[%clk 0:02:23]}  b6 {[%clk 0:01:41]} 21. Qc7 {[%clk 0:02:21]}  Rb7 {[%clk 0:01:36]} 22. Qxd8 {[%clk 0:02:19]}  Rxd8 {[%clk 0:01:37]} 23. Rc6 {[%clk 0:02:19]}  Rbd7 {[%clk 0:01:32]} 24. Rfc1 {[%clk 0:02:14]}  Bg5 {[%clk 0:01:32]} 25. e3 {[%clk 0:02:13]}  f5 {[%clk 0:01:31]} 26. h4 {[%clk 0:02:01]}  Be7 {[%clk 0:01:23]} 27. e4 {[%clk 0:01:57]}  f4 {[%clk 0:01:18]} 28. gxf4 {[%clk 0:01:56]}  exf4 {[%clk 0:01:19]} 29. e5 {[%clk 0:01:54]}  Nf5 {[%clk 0:01:18]} 30. d6 {[%clk 0:01:40]}  Bxh4 {[%clk 0:01:17]} 31. Bd5+ {[%clk 0:01:40]}  Kf8 {[%clk 0:01:07]} 32. Be6 {[%clk 0:01:40]}  Nd4 {[%clk 0:00:40]} 33. Bxd7 {[%clk 0:01:39]}  Ne2+ {[%clk 0:00:41]} 34. Kf1 {[%clk 0:01:36]}  Nxc1 {[%clk 0:00:41]} 35. e6 {[%clk 0:01:30]}  Nd3 {[%clk 0:00:40]} 36. Nc4 {[%clk 0:01:26]}  Bf6 {[%clk 0:00:24]} 37. Bc8 {[%clk 0:01:22]}  Nc5 {[%clk 0:00:20]} 38. b4 {[%clk 0:01:20]}  Ne4 {[%clk 0:00:19]} 39. e7+ {[%clk 0:01:19]}  Bxe7 {[%clk 0:00:19]} 40. dxe7+ {[%clk 0:01:20]}  Kxe7 {[%clk 0:00:20]} 41. Re6+ {[%clk 0:01:21]}  Kf7 {[%clk 0:00:20]} 42. Rxe4 {[%clk 0:01:21]}  Rxc8 {[%clk 0:00:20]} 43. Rxf4+ {[%clk 0:01:22]}  Kg6 {[%clk 0:00:21]} 44. Kg2 {[%clk 0:01:20]}  Kg5 {[%clk 0:00:21]} 45. Rd4 {[%clk 0:01:20]}  h4 {[%clk 0:00:22]} 46. Ne3 {[%clk 0:01:19]}  g3 {[%clk 0:00:19]} 47. fxg3 {[%clk 0:01:20]} 1-0


[Site "https://www.chess.com"]

[Event "Titled Tuesday Blitz March 14 Early 2023"]
[White "Costachi, Mihnea"]
[Black "Leve, Nitai"]
[WhiteFideId "1217518"]
[BlackFideId "2006898"]
[WhiteElo "2456"]
[BlackElo "2144"]
[Result "1-0"]
[Round "01"]
[TimeControl "180+2"]
[Date "2023.03.14"]
[WhiteClock "0:01:58"]
[BlackClock "0:02:04"]

1. c4 {[%clk 0:02:58]}  e5 {[%clk 0:02:59]} 2. g3 {[%clk 0:02:58]}  Nf6 {[%clk 0:02:58]} 3. Bg2 {[%clk 0:02:58]}  Nc6 {[%clk 0:02:57]} 4. Nc3 {[%clk 0:02:58]}  Bb4 {[%clk 0:02:57]} 5. Nd5 {[%clk 0:02:57]}  Bc5 {[%clk 0:02:57]} 6. e3 {[%clk 0:02:57]}  d6 {[%clk 0:02:54]} 7. Ne2 {[%clk 0:02:56]}  Bg4 {[%clk 0:02:50]} 8. h3 {[%clk 0:02:54]}  Be6 {[%clk 0:02:49]} 9. d4 {[%clk 0:02:38]}  exd4 {[%clk 0:02:32]} 10. exd4 {[%clk 0:02:38]}  Bxd5 {[%clk 0:02:21]} 11. cxd5 {[%clk 0:02:38]}  Bb4+ {[%clk 0:02:21]} 12. Kf1 {[%clk 0:02:38]}  O-O {[%clk 0:02:14]} 13. dxc6 {[%clk 0:02:38]}  bxc6 {[%clk 0:02:15]} 14. Bxc6 {[%clk 0:02:35]}  Rb8 {[%clk 0:02:14]} 15. Bf3 {[%clk 0:02:33]}  Re8 {[%clk 0:02:13]} 16. Kg2 {[%clk 0:02:31]}  h6 {[%clk 0:02:14]} 17. Nc3 {[%clk 0:02:30]}  Bxc3 {[%clk 0:02:09]} 18. bxc3 {[%clk 0:02:30]}  Qe7 {[%clk 0:02:10]} 19. Bc6 {[%clk 0:02:18]}  Red8 {[%clk 0:02:09]} 20. Re1 {[%clk 0:02:18]}  Qf8 {[%clk 0:02:10]} 21. d5 {[%clk 0:02:08]}  Nd7 {[%clk 0:02:07]} 22. Be3 {[%clk 0:02:05]}  Ne5 {[%clk 0:02:04]} 23. Bxa7 {[%clk 0:01:58]}  Rb2 {[%clk 0:02:04]} 24. Re2 {[%clk 0:01:58]} 1-0


[Site "https://www.chess.com"]

[Event "Titled Tuesday Blitz March 14 Early 2023"]
[White "Girsh, Daniel"]
[Black "Rakhmatullaev, Almas"]
[WhiteFideId "30949190"]
[BlackFideId "14205793"]
[WhiteElo "2075"]
[BlackElo "2221"]
[Result "1/2-1/2"]
[Round "01"]
[TimeControl "180+2"]
[Date "2023.03.14"]
[WhiteClock "0:00:16"]
[BlackClock "0:00:15"]

1. e4 {[%clk 0:03:00]}  e5 {[%clk 0:02:59]} 2. Nf3 {[%clk 0:03:00]}  Nf6 {[%clk 0:03:00]} 3. Nxe5 {[%clk 0:02:59]}  Nxe4 {[%clk 0:03:00]} 4. Qe2 {[%clk 0:02:58]}  Qe7 {[%clk 0:03:00]} 5. Qxe4 {[%clk 0:02:57]}  d6 {[%clk 0:03:01]} 6. d4 {[%clk 0:02:57]}  dxe5 {[%clk 0:03:01]} 7. dxe5 {[%clk 0:02:56]}  Nc6 {[%clk 0:03:01]} 8. Bb5 {[%clk 0:02:52]}  Bd7 {[%clk 0:03:01]} 9. O-O {[%clk 0:02:45]}  O-O-O {[%clk 0:03:00]} 10. Re1 {[%clk 0:02:40]}  Nxe5 {[%clk 0:02:45]} 11. Bxd7+ {[%clk 0:02:36]}  Rxd7 {[%clk 0:02:46]} 12. Nc3 {[%clk 0:02:31]}  Nc6 {[%clk 0:02:36]} 13. Bf4 {[%clk 0:02:25]}  Qxe4 {[%clk 0:02:34]} 14. Nxe4 {[%clk 0:02:23]}  Nd4 {[%clk 0:02:29]} 15. Rac1 {[%clk 0:02:22]}  Ne6 {[%clk 0:02:24]} 16. Be3 {[%clk 0:02:18]}  Bb4 {[%clk 0:02:21]} 17. c3 {[%clk 0:02:17]}  Be7 {[%clk 0:02:22]} 18. f3 {[%clk 0:02:08]}  Rhd8 {[%clk 0:02:20]} 19. Nf2 {[%clk 0:01:56]}  b6 {[%clk 0:02:15]} 20. Rcd1 {[%clk 0:01:55]}  Kb7 {[%clk 0:02:07]} 21. Rxd7 {[%clk 0:01:55]}  Rxd7 {[%clk 0:02:07]} 22. Rd1 {[%clk 0:01:53]}  Rxd1+ {[%clk 0:02:06]} 23. Nxd1 {[%clk 0:01:54]}  Kc6 {[%clk 0:02:07]} 24. Kf2 {[%clk 0:01:53]}  Kd5 {[%clk 0:02:08]} 25. Ke2 {[%clk 0:01:53]}  f5 {[%clk 0:02:08]} 26. Kd3 {[%clk 0:01:46]}  Bd6 {[%clk 0:02:07]} 27. g3 {[%clk 0:01:38]}  f4 {[%clk 0:02:06]} 28. Bf2 {[%clk 0:01:38]}  Ng5 {[%clk 0:02:03]} 29. Ke2 {[%clk 0:01:31]}  c5 {[%clk 0:01:58]} 30. g4 {[%clk 0:01:22]}  b5 {[%clk 0:01:50]} 31. h4 {[%clk 0:01:15]}  Nf7 {[%clk 0:01:46]} 32. b3 {[%clk 0:01:13]}  a6 {[%clk 0:01:45]} 33. Nb2 {[%clk 0:01:12]}  Ne5 {[%clk 0:01:41]} 34. Nd3 {[%clk 0:01:10]}  Nc6 {[%clk 0:01:37]} 35. Nb2 {[%clk 0:01:10]}  Na5 {[%clk 0:01:17]} 36. Kd3 {[%clk 0:01:04]}  Be5 {[%clk 0:01:09]} 37. c4+ {[%clk 0:00:55]}  Kd6 {[%clk 0:01:05]} 38. Nd1 {[%clk 0:00:51]}  Nc6 {[%clk 0:01:05]} 39. a3 {[%clk 0:00:37]}  Bd4 {[%clk 0:00:51]} 40. cxb5 {[%clk 0:00:32]}  axb5 {[%clk 0:00:51]} 41. Ke4 {[%clk 0:00:21]}  Bxf2 {[%clk 0:00:47]} 42. Nxf2 {[%clk 0:00:21]}  Nd4 {[%clk 0:00:45]} 43. b4 {[%clk 0:00:21]}  Nc2 {[%clk 0:00:45]} 44. bxc5+ {[%clk 0:00:19]}  Kxc5 {[%clk 0:00:46]} 45. Nd3+ {[%clk 0:00:20]}  Kc4 {[%clk 0:00:47]} 46. Ne5+ {[%clk 0:00:20]}  Kc3 {[%clk 0:00:45]} 47. Nc6 {[%clk 0:00:17]}  Nxa3 {[%clk 0:00:45]} 48. Kxf4 {[%clk 0:00:18]}  Nc4 {[%clk 0:00:42]} 49. Kf5 {[%clk 0:00:17]}  b4 {[%clk 0:00:36]} 50. Nxb4 {[%clk 0:00:17]}  Kxb4 {[%clk 0:00:37]} 51. Ke6 {[%clk 0:00:17]}  Kc5 {[%clk 0:00:30]} 52. Kf7 {[%clk 0:00:16]}  Ne5+ {[%clk 0:00:28]} 53. Kxg7 {[%clk 0:00:16]}  Nxf3 {[%clk 0:00:29]} 54. h5 {[%clk 0:00:15]}  Nh2 {[%clk 0:00:18]} 55. g5 {[%clk 0:00:15]}  Nf3 {[%clk 0:00:19]} 56. Kf6 {[%clk 0:00:11]}  Nxg5 {[%clk 0:00:10]} 57. Kxg5 {[%clk 0:00:11]}  Kd6 {[%clk 0:00:11]} 58. Kf6 {[%clk 0:00:12]}  Kd7 {[%clk 0:00:10]} 59. Kf7 {[%clk 0:00:12]}  Kd8 {[%clk 0:00:11]} 60. h6 {[%clk 0:00:12]}  Kd7 {[%clk 0:00:11]} 61. Kg7 {[%clk 0:00:12]}  Ke7 {[%clk 0:00:12]} 62. Kg8 {[%clk 0:00:12]}  Ke8 {[%clk 0:00:12]} 63. Kxh7 {[%clk 0:00:12]}  Kf7 {[%clk 0:00:12]} 64. Kh8 {[%clk 0:00:13]}  Kf8 {[%clk 0:00:13]} 65. Kh7 {[%clk 0:00:14]}  Kf7 {[%clk 0:00:13]} 66. Kh8 {[%clk 0:00:15]}  Kf8 {[%clk 0:00:14]} 67. Kh7 {[%clk 0:00:16]}  Kf7 {[%clk 0:00:15]} 1/2-1/2


[Site "https://www.chess.com"]

[Event "Titled Tuesday Blitz March 14 Early 2023"]
[White "EREBUNI91"]
[Black "littlepillow2010"]
[WhiteElo "2753"]
[BlackElo "2386"]
[Result "1-0"]
[Round "01"]
[TimeControl "180+2"]
[Date "2023.03.14"]
[WhiteClock "0:01:37"]
[BlackClock "0:00:01"]

1. e4 {[%clk 0:03:00]}  c5 {[%clk 0:02:56]} 2. Nc3 {[%clk 0:03:01]}  a6 {[%clk 0:02:54]} 3. g3 {[%clk 0:03:00]}  b5 {[%clk 0:02:54]} 4. Bg2 {[%clk 0:03:00]}  Bb7 {[%clk 0:02:54]} 5. d3 {[%clk 0:03:01]}  e6 {[%clk 0:02:52]} 6. Nh3 {[%clk 0:03:00]}  Nf6 {[%clk 0:02:35]} 7. O-O {[%clk 0:02:43]}  d6 {[%clk 0:02:26]} 8. f4 {[%clk 0:02:41]}  Nbd7 {[%clk 0:02:23]} 9. Be3 {[%clk 0:02:28]}  Be7 {[%clk 0:02:03]} 10. Qe2 {[%clk 0:02:02]}  O-O {[%clk 0:01:53]} 11. Rae1 {[%clk 0:01:59]}  Qc7 {[%clk 0:01:50]} 12. g4 {[%clk 0:01:57]}  b4 {[%clk 0:01:11]} 13. Nd1 {[%clk 0:01:57]}  g6 {[%clk 0:00:53]} 14. g5 {[%clk 0:01:53]}  Nh5 {[%clk 0:00:52]} 15. Bf3 {[%clk 0:01:52]}  Ng7 {[%clk 0:00:52]} 16. Nhf2 {[%clk 0:01:51]}  d5 {[%clk 0:00:43]} 17. Ng4 {[%clk 0:01:46]}  a5 {[%clk 0:00:24]} 18. e5 {[%clk 0:01:40]}  c4 {[%clk 0:00:17]} 19. Nf6+ {[%clk 0:01:38]}  Bxf6 {[%clk 0:00:16]} 20. gxf6 {[%clk 0:01:39]}  Nf5 {[%clk 0:00:16]} 21. Bg4 {[%clk 0:01:39]}  Nxe3 {[%clk 0:00:10]} 22. Qxe3 {[%clk 0:01:39]}  cxd3 {[%clk 0:00:04]} 23. cxd3 {[%clk 0:01:39]}  d4 {[%clk 0:00:03]} 24. Qh3 {[%clk 0:01:39]}  Qc6 {[%clk 0:00:03]} 25. Bf3 {[%clk 0:01:38]}  Qb6 {[%clk 0:00:01]} 26. Qh6 {[%clk 0:01:37]} 1-0


[Site "https://www.chess.com"]

[Event "Titled Tuesday Blitz March 14 Early 2023"]
[White "Cherniaiev, Tykhon"]
[Black "ArtemDyachuk"]
[WhiteFideId "14182360"]
[WhiteElo "2450"]
[BlackElo "2379"]
[Result "1-0"]
[Round "01"]
[TimeControl "180+2"]
[Date "2023.03.14"]
[WhiteClock "0:00:05"]
[BlackClock "0:00:01"]

1. Nf3 {[%clk 0:02:59]}  Nf6 {[%clk 0:02:47]} 2. d4 {[%clk 0:02:58]}  e6 {[%clk 0:02:45]} 3. c4 {[%clk 0:02:58]}  c5 {[%clk 0:02:46]} 4. g3 {[%clk 0:02:54]}  cxd4 {[%clk 0:02:27]} 5. Nxd4 {[%clk 0:02:55]}  Qc7 {[%clk 0:02:27]} 6. Qc2 {[%clk 0:02:52]}  Nc6 {[%clk 0:02:10]} 7. Nb5 {[%clk 0:02:47]}  Qb8 {[%clk 0:02:10]} 8. Bg2 {[%clk 0:02:47]}  a6 {[%clk 0:02:09]} 9. N5c3 {[%clk 0:02:46]}  Bc5 {[%clk 0:02:08]} 10. O-O {[%clk 0:02:46]}  h5 {[%clk 0:01:50]} 11. Bg5 {[%clk 0:02:42]}  h4 {[%clk 0:01:42]} 12. e3 {[%clk 0:02:28]}  hxg3 {[%clk 0:01:23]} 13. hxg3 {[%clk 0:02:09]}  Qe5 {[%clk 0:01:17]} 14. Bxf6 {[%clk 0:01:55]}  gxf6 {[%clk 0:01:15]} 15. Nd2 {[%clk 0:01:48]}  Qh5 {[%clk 0:01:11]} 16. Rfd1 {[%clk 0:01:40]}  Ne5 {[%clk 0:00:49]} 17. Qe4 {[%clk 0:00:50]}  Rg8 {[%clk 0:00:16]} 18. Qf4 {[%clk 0:00:41]}  Bd6 {[%clk 0:00:06]} 19. Nde4 {[%clk 0:00:37]}  Be7 {[%clk 0:00:05]} 20. Nxf6+ {[%clk 0:00:27]}  Bxf6 {[%clk 0:00:06]} 21. Qxf6 {[%clk 0:00:28]}  Ng4 {[%clk 0:00:06]} 22. Qf3 {[%clk 0:00:16]}  Rg6 {[%clk 0:00:05]} 23. Ne4 {[%clk 0:00:15]}  f5 {[%clk 0:00:04]} 24. Nd6+ {[%clk 0:00:14]}  Ke7 {[%clk 0:00:04]} 25. Rd4 {[%clk 0:00:10]}  Rh6 {[%clk 0:00:04]} 26. Nxc8+ {[%clk 0:00:09]}  Rxc8 {[%clk 0:00:04]} 27. Rad1 {[%clk 0:00:10]}  Rc7 {[%clk 0:00:03]} 28. Rf4 {[%clk 0:00:04]}  Qe8 {[%clk 0:00:03]} 29. Rxg4 {[%clk 0:00:03]}  fxg4 {[%clk 0:00:02]} 30. Qxg4 {[%clk 0:00:04]}  Qh5 {[%clk 0:00:02]} 31. Qd4 {[%clk 0:00:04]}  e5 {[%clk 0:00:01]} 32. Qd5 {[%clk 0:00:02]}  Rhc6 {[%clk 0:00:02]} 33. c5 {[%clk 0:00:02]}  Qg6 {[%clk 0:00:02]} 34. Be4 {[%clk 0:00:02]}  Qe6 {[%clk 0:00:03]} 35. Qd3 {[%clk 0:00:02]}  Rxc5 {[%clk 0:00:03]} 36. Bf5 {[%clk 0:00:02]}  Qf6 {[%clk 0:00:03]} 37. Qe4 {[%clk 0:00:03]}  Rc4 {[%clk 0:00:03]} 38. Qf3 {[%clk 0:00:02]}  Rc1 {[%clk 0:00:03]} 39. Rxc1 {[%clk 0:00:02]}  Rxc1+ {[%clk 0:00:04]} 40. Kg2 {[%clk 0:00:02]}  Qh6 {[%clk 0:00:04]} 41. Bh3 {[%clk 0:00:02]}  Qf6 {[%clk 0:00:04]} 42. Qg4 {[%clk 0:00:01]}  Rc7 {[%clk 0:00:03]} 43. Qe4 {[%clk 0:00:01]}  d6 {[%clk 0:00:02]} 44. Qd5 {[%clk 0:00:01]}  Qf7 {[%clk 0:00:02]} 45. Qe4 {[%clk 0:00:01]}  Rc4 {[%clk 0:00:02]} 46. Qxb7+ {[%clk 0:00:01]}  Kf6 {[%clk 0:00:03]} 47. Qxa6 {[%clk 0:00:02]}  Qc7 {[%clk 0:00:02]} 48. Qb5 {[%clk 0:00:02]}  Rc2 {[%clk 0:00:02]} 49. Qd5 {[%clk 0:00:02]}  Qc5 {[%clk 0:00:02]} 50. Qe6+ {[%clk 0:00:03]}  Kg7 {[%clk 0:00:02]} 51. Bf5 {[%clk 0:00:03]}  Rd2 {[%clk 0:00:01]} 52. Qe7+ {[%clk 0:00:03]}  Kg8 {[%clk 0:00:01]} 53. Be6+ {[%clk 0:00:03]}  Kh8 {[%clk 0:00:01]} 54. Qf8+ {[%clk 0:00:04]}  Kh7 {[%clk 0:00:01]} 55. Bf5# {[%clk 0:00:05]} 1-0


[Site "https://www.chess.com"]